bitfinex-derivatives/quotes_ETHF0:USTF0_20210405
["timestamp","ask_amount","ask_price","bid_price","bid_amount"]
[1617635425159,2.90695,2110.1,2110.0,5.68]
[1617635425362,2.90695,2110.1,2109.3,5.88]
[1617635425561,2.90695,2109.4,2109.3,5.88]
[1617635425760,2.90695,2109.4,2109.2,12.7512]
[1617635426162,2.90695,2109.4,2109.3,5.84]
[1617635428866,3.55902533,2109.4,2109.3,5.84]
[1617635430166,2.90695,2109.4,2109.3,5.84]
[1617635431367,3.77593345,2109.4,2109.3,5.84]
[1617635431568,2.90695,2109.4,2109.3,5.84]
[1617635433971,3.7760618,2109.4,2109.3,5.84]
[1617635437171,3.7760618,2109.4,2109.3,3.4670437]
[1617635438378,2.90695,2109.4,2109.3,3.4670437]
[1617635438974,2.90695,2109.4,2109.3,3.1670437]
[1617635440674,3.77490801,2109.4,2109.3,3.1670437]
[1617635441078,2.90695,2109.4,2109.3,3.1670437]
[1617635444778,2.90695,2109.4,2109.3,0.79358467]
[1617635445480,3.99098384,2109.4,2109.3,0.79358467]
[1617635448381,2.90695,2109.4,2109.3,0.79358467]
[1617635450186,3.77371536,2109.4,2109.3,0.79358467]
[1617635450586,3.77371536,2109.4,2109.3,3.09178467]
[1617635451386,2.90695,2109.4,2109.3,3.09178467]
[1617635451585,3.55723362,2109.4,2109.3,3.09178467]
[1617635451887,3.55723362,2109.4,2109.3,5.99873467]
[1617635452086,0.65028362,2109.4,2109.3,5.99873467]
[1617635453986,3.55723362,2109.4,2109.3,3.62519677]
[1617635454186,3.55723362,2109.4,2109.3,9.52519677]
[1617635454386,4.39746875,2109.4,2109.3,9.52519677]
[1617635455390,1.49051875,2109.4,2109.3,9.52519677]
[1617635455587,1.49051875,2109.4,2109.3,11.52519677]
[1617635455788,0.64868433,2109.5,2109.3,9.52519677]
[1617635456188,0.64868433,2109.5,2109.3,6.61824677]
[1617635457589,0.43217293,2109.4,2109.3,6.61824677]
[1617635457989,0.43217293,2109.4,2109.3,9.52519677]
[1617635458392,0.43217293,2109.4,2109.3,11.52519677]
[1617635459192,3.5553449,2109.7,2109.3,11.52519677]
[1617635459394,0.27020043,2109.4,2109.3,11.52519677]
[1617635459591,3.5553449,2109.7,2109.3,11.52519677]
[1617635459793,0.64856956,2109.6,2109.3,11.52519677]
[1617635459994,0.6484538,2109.5,2109.3,11.52519677]
[1617635460693,0.64845499,2109.6,2109.3,11.52519677]
[1617635461597,0.64845499,2109.6,2109.4,30.0]
[1617635461797,0.64845499,2109.6,2109.5,2.0]
[1617635461997,3.55473027,2109.7,2109.5,37.96]
[1617635462196,2.37244758,2109.6,2109.5,37.96]
[1617635464099,0.64780823,2109.8,2109.5,37.96]
[1617635464300,0.64770201,2109.7,2109.5,37.96]
[1617635464698,0.64770201,2109.7,2109.5,7.96]
[1617635464898,0.64770201,2109.7,2109.5,5.96]
[1617635465299,0.64746983,2109.6,2109.4,5.92]
[1617635465498,0.86329311,2109.8,2109.4,5.92]
[1617635465698,0.86329311,2109.8,2109.6,5.93]
[1617635465898,3.76976447,2109.7,2109.4,5.94]
[1617635466100,4.60992286,2109.7,2109.4,5.94]
[1617635466299,4.60992286,2109.7,2109.3,4.90695]
[1617635466500,0.84016045,2109.6,2109.3,4.90695]
[1617635466700,0.84016045,2109.6,2109.5,5.91]
[1617635467301,0.84016045,2109.6,2109.3,4.90695]
[1617635467602,0.64583714,2109.4,2109.3,4.90695]
[1617635468001,3.55278714,2109.4,2109.3,10.64695]
[1617635468401,4.39298033,2109.4,2109.3,10.64695]
[1617635468802,4.39298033,2109.4,2109.3,7.74]
[1617635469403,3.74714319,2109.4,2109.3,7.74]
[1617635469601,4.39256185,2109.4,2109.3,7.74]
[1617635470002,4.39256185,2109.4,2109.3,10.64695]
[1617635470603,4.39256185,2109.4,2109.3,7.74]
[1617635471008,3.74714319,2109.4,2109.3,7.74]
[1617635472107,3.74714319,2109.4,2109.3,10.64695]
[1617635472307,2.90695,2109.4,2109.3,10.64695]
[1617635472507,2.90695,2109.4,2109.3,8.27405417]
[1617635472907,3.55295337,2109.4,2109.3,8.27405417]
[1617635473107,0.64600337,2109.4,2109.3,10.91005417]
[1617635473309,0.64573879,2109.5,2109.3,10.91005417]
[1617635473810,0.86105864,2109.8,2109.3,40.91005417]
[1617635474009,0.86105864,2109.8,2109.5,59.2273]
[1617635474210,0.86124499,2109.9,2109.7,2.90695]
[1617635474409,0.86124499,2109.9,2109.7,4.90695]
[1617635474611,0.86124499,2109.9,2109.8,5.7]
[1617635474809,0.86124499,2109.9,2109.8,7.5504]
[1617635475910,0.86124499,2109.9,2109.8,5.7]
[1617635476109,3.98351588,2110.0,2109.8,5.7]
[1617635477714,7.77278592,2110.0,2109.8,5.7]
[1617635478315,4.86229571,2109.9,2109.8,5.7]
[1617635479315,7.76962172,2110.0,2109.8,5.7]
[1617635479719,4.86183322,2109.9,2109.8,5.7]
[1617635479918,4.86183322,2109.9,2109.6,5.73]
[1617635480119,4.86183322,2109.9,2109.8,2.90695]
[1617635480321,4.86093233,2110.0,2109.8,8.69695]
[1617635480521,4.86093233,2110.0,2109.8,2.90695]
[1617635480722,4.86066735,2109.9,2109.8,2.90695]
[1617635481121,0.84025714,2110.1,2109.8,2.90695]
[1617635481122,7.23299497,2110.0,2109.8,8.72695]
[1617635481524,0.84025303,2109.9,2109.8,8.72695]
[1617635482121,3.74720303,2109.9,2109.8,8.72695]
[1617635483223,8.60817685,2109.9,2109.8,8.72695]
[1617635483822,3.74720303,2109.9,2109.8,8.72695]
[1617635485026,8.60771736,2109.9,2109.8,8.72695]
[1617635486726,3.74720303,2109.9,2109.8,8.72695]
[1617635486929,0.84025303,2109.9,2109.8,8.72695]
[1617635487126,0.84025303,2109.9,2109.8,10.99385]
[1617635487426,4.6239447,2109.9,2109.8,10.99385]
[1617635487627,5.5813447,2109.9,2109.8,40.99385]
[1617635488026,5.5813447,2109.9,2109.8,42.99385]
[1617635488226,4.5068447,2109.9,2109.8,42.99385]
[1617635488826,4.86397481,2110.1,2109.8,42.99385]
[1617635489029,4.87312044,2110.2,2109.8,42.99385]
[1617635489628,4.87422606,2110.1,2109.8,42.99385]
[1617635490030,4.87435374,2110.2,2109.8,42.99385]
[1617635490231,4.87435374,2110.2,2109.8,40.0869]
[1617635490632,4.87407805,2110.1,2109.8,40.0869]
[1617635491432,4.87407805,2110.1,2109.8,10.0869]
[1617635491633,4.87407805,2110.1,2109.8,7.82]
[1617635492034,4.87500448,2110.0,2109.8,7.82]
[1617635492232,7.78219778,2109.9,2109.8,7.82]
[1617635494235,7.78219778,2109.9,2109.8,5.82]
[1617635494635,7.78219778,2109.9,2109.5,5.71]
[1617635494837,2.90695,2109.9,2109.5,5.71]
[1617635495035,2.90695,2109.9,2109.8,5.86]
[1617635495238,2.90695,2109.9,2109.5,5.95]
[1617635495636,5.95427794,2110.0,2109.8,5.81]
[1617635495837,5.95427794,2110.0,2109.5,5.87]
[1617635496038,4.87384388,2109.9,2109.5,5.87]
[1617635496238,4.87384388,2109.9,2109.8,2.90695]
[1617635496438,2.571,2110.3,2109.8,2.90695]
[1617635496439,5.95588955,2110.0,2109.8,2.90695]
[1617635496637,5.95588955,2110.0,2109.8,8.74695]
[1617635497137,4.875034,2109.9,2109.8,8.74695]
[1617635497937,4.875034,2109.9,2109.8,5.84]
[1617635498338,7.781984,2109.9,2109.5,8.84695]
[1617635498739,7.781984,2109.9,2109.8,5.84]
[1617635498940,7.781984,2109.9,2109.6,5.94]
[1617635499139,7.781984,2109.9,2109.6,35.94]
[1617635499339,7.781984,2109.9,2109.8,5.91]
[1617635499539,5.365984,2109.9,2109.8,60.391]
[1617635499739,2.90695,2109.9,2109.8,90.391]
[1617635499940,2.90695,2109.9,2109.8,66.251]
[1617635500344,6.70309192,2109.9,2109.8,69.15795]
[1617635500539,3.79614192,2109.9,2109.8,69.15795]
[1617635500940,5.97029772,2110.2,2109.8,69.15795]
[1617635501341,5.97029772,2110.2,2109.8,66.251]
[1617635501948,5.96673863,2110.1,2109.8,66.251]
[1617635502159,7.70333863,2110.1,2109.8,66.251]
[1617635502357,2.90695,2109.9,2109.8,66.251]
[1617635502849,2.90695,2109.9,2109.8,5.86]
[1617635503247,2.90695,2109.9,2109.6,5.74]
[1617635503648,2.90695,2109.9,2109.8,5.71]
[1617635503848,2.90695,2109.9,2109.7,5.84]
[1617635504249,2.90695,2109.9,2109.2,14.7512]
[1617635504250,2.90695,2109.9,2109.8,5.94]
[1617635504450,2.90695,2109.9,2109.3,5.84]
[1617635504651,2.90695,2109.9,2109.2,17.65815]
[1617635504652,4.8081632,2109.9,2109.2,17.65815]
[1617635504850,4.8081632,2109.9,2109.8,5.94]
[1617635505053,4.8081632,2109.9,2109.3,5.91]
[1617635505251,4.8081632,2109.9,2109.2,17.65815]
[1617635505452,4.8081632,2109.9,2109.8,5.74]
[1617635505651,4.8081632,2109.9,2109.3,5.91]
[1617635506151,2.90695,2109.9,2109.8,5.86]
[1617635506352,2.90695,2109.9,2109.3,5.68]
[1617635506753,2.90695,2109.9,2109.8,5.74]
[1617635506952,1.08691647,2109.4,2109.3,5.8]
[1617635507352,1.08691647,2109.4,2109.2,47.65815]
[1617635507552,1.08691647,2109.4,2109.3,5.81]
[1617635507752,1.90482111,2109.6,2109.3,5.81]
[1617635508252,2.90695,2109.4,2109.3,5.81]
[1617635509454,3.99350994,2109.4,2109.3,5.81]
[1617635509860,2.90695,2109.4,2109.3,5.81]
[1617635511254,0.86564174,2109.8,2109.3,5.81]
[1617635511453,0.8647638,2109.9,2109.3,5.81]
[1617635511866,0.86494666,2110.0,2109.3,5.81]
[1617635512054,0.86494666,2110.0,2109.3,35.81]
[1617635512255,0.86494666,2110.0,2109.5,2.90695]
[1617635512455,2.3724117,2109.7,2109.5,2.90695]
[1617635512655,2.3724117,2109.7,2109.6,5.71]
[1617635514256,5.2793617,2109.7,2109.6,5.71]
[1617635514456,2.90695,2109.7,2109.6,5.71]
[1617635522266,2.90695,2109.7,2109.6,8.61695]
[1617635522967,4.94278149,2110.2,2109.6,40.61695]
[1617635523168,0.05398889,2109.7,2109.6,40.61695]
[1617635523369,0.86382226,2110.5,2109.6,40.61695]
[1617635523567,0.02700578,2109.8,2109.6,40.61695]
[1617635523868,0.02699261,2109.9,2109.6,40.61695]
[1617635524869,0.02697002,2110.0,2109.6,40.61695]
[1617635525671,0.02696676,2110.1,2109.6,40.61695]
[1617635526472,0.02696676,2110.1,2110.0,2.90695]
[1617635526672,0.86286368,2110.9,2110.0,34.97185]
[1617635526872,1.9825601,2111.0,2110.0,40.65185]
[1617635527372,0.86304517,2111.0,2110.1,2.0]
[1617635527776,0.8396076,2110.9,2110.2,5.76]
[1617635528177,0.86247616,2110.8,2110.2,5.76]
[1617635528378,0.86247616,2110.8,2110.3,2.90695]
[1617635528778,0.86237836,2110.7,2110.3,8.61695]
[1617635528977,0.86237836,2110.7,2110.3,2.90695]
[1617635529378,1.70227742,2110.8,2110.4,5.8]
[1617635530078,0.86356522,2110.7,2110.4,5.8]
[1617635530481,2.90695,2110.5,2110.4,5.8]
[1617635530882,2.90695,2110.5,2110.1,5.81]
[1617635530883,3.74665545,2110.5,2110.1,5.81]
[1617635531280,3.74665545,2110.5,2110.0,8.78695]
[1617635531281,3.74665545,2110.5,2110.4,5.75]
[1617635531483,3.74665545,2110.5,2110.1,5.86]
[1617635531682,2.90695,2110.5,2110.1,5.86]
[1617635531882,2.90695,2110.5,2110.4,5.74]
[1617635532082,2.90695,2110.5,2110.1,5.94]
[1617635532383,2.90695,2110.2,2110.0,2.90695]
[1617635532785,5.48955,2110.2,2110.1,5.96]
[1617635533186,5.48955,2110.2,2110.0,5.88]
[1617635533385,5.48955,2110.2,2109.3,0.62]
[1617635533595,5.48955,2110.2,2110.1,5.73]
[1617635533784,5.48955,2110.2,2109.3,5.75]
[1617635534185,5.48955,2110.2,2110.1,5.81]
[1617635534392,5.48955,2110.2,2109.3,5.78]
[1617635534787,5.48955,2110.2,2109.2,12.7512]
[1617635534788,5.48955,2110.2,2110.1,5.84]
[1617635534987,5.48955,2110.2,2109.3,5.9]
[1617635535188,6.3524664,2110.2,2109.3,5.9]
[1617635535589,0.64709388,2109.9,2109.3,5.9]
[1617635536393,2.90695,2109.4,2109.3,5.9]
[1617635536594,5.36265,2109.4,2109.3,6.8593]
[1617635537290,5.36265,2109.4,2109.3,5.9]
[1617635538092,2.90695,2109.4,2109.3,5.9]
[1617635538494,2.90695,2109.4,2109.3,8.80695]
[1617635540295,2.90695,2109.4,2109.3,5.9]
[1617635542197,4.74645,2109.4,2109.3,5.9]
[1617635543199,2.90695,2109.4,2109.3,5.9]
[1617635543397,0.64526879,2109.7,2109.3,5.9]
[1617635543599,0.64619478,2109.8,2109.3,8.6178]
[1617635543999,3.21749293,2110.0,2109.3,8.6178]
[1617635544398,2.90695,2109.4,2109.3,11.52475]
[1617635546901,2.571,2110.0,2109.3,41.52475]
[1617635547802,2.571,2110.0,2109.4,2.0]
[1617635548003,10.86267159,2110.6,2109.3,41.52475]
[1617635548004,0.64708093,2110.5,2109.3,41.52475]
[1617635548202,0.64708093,2110.5,2109.5,5.94]
[1617635548403,10.0,2110.6,2110.2,2.90695]
[1617635548804,10.0,2110.6,2110.3,5.88]
[1617635549002,10.0,2110.6,2110.3,3.50786968]
[1617635549202,10.64595697,2110.6,2110.3,3.50786968]
[1617635549402,10.0,2110.6,2110.3,3.50786968]
[1617635550405,2.90695,2110.4,2110.3,3.50786968]
[1617635550605,3.76866052,2110.4,2110.3,3.50786968]
[1617635551005,3.74677118,2110.4,2110.3,3.50786968]
[1617635551207,6.31777118,2110.4,2110.3,3.50786968]
[1617635551408,7.179149,2110.4,2110.3,3.50786968]
[1617635551808,6.96412982,2110.4,2110.3,3.50786968]
[1617635552107,5.47795,2110.4,2110.3,3.50786968]
[1617635552308,2.90695,2110.4,2110.3,3.50786968]
[1617635552507,2.90695,2110.4,2110.3,6.41481968]
[1617635552707,2.90695,2110.4,2110.3,70.27371968]
[1617635553108,10.64636513,2110.6,2110.3,70.27371968]
[1617635553308,10.64636513,2110.6,2110.3,72.33811968]
[1617635553509,10.0,2110.6,2110.3,72.33811968]
[1617635554409,10.0,2110.6,2110.3,70.27371968]
[1617635554608,2.90695,2110.5,2110.3,70.27371968]
[1617635555310,3.55321046,2110.5,2110.3,70.27371968]
[1617635555509,0.64626046,2110.5,2110.3,70.27371968]
[1617635555909,10.6464128,2110.6,2110.3,70.27371968]
[1617635556111,10.6464128,2110.6,2110.3,72.82121968]
[1617635556512,13.5533628,2110.6,2110.3,72.82121968]
[1617635556713,12.90695,2110.6,2110.3,72.82121968]
[1617635557413,13.55342712,2110.6,2110.3,72.82121968]
[1617635557613,10.64647712,2110.6,2110.3,72.82121968]
[1617635557814,10.0,2110.6,2110.3,72.82121968]
[1617635558518,12.90695,2110.6,2110.3,72.82121968]
[1617635559617,10.0,2110.6,2110.3,72.82121968]
[1617635560818,10.0,2110.6,2110.3,102.82121968]
[1617635573136,10.0,2110.6,2110.3,104.82121968]
[1617635575837,7.8243,2110.6,2110.3,104.82121968]
[1617635576039,6.4587,2110.6,2110.3,104.82121968]
[1617635576238,6.4587,2110.6,2110.3,102.82121968]
[1617635576438,4.0403,2110.6,2110.3,102.82121968]
[1617635579941,4.9788,2110.6,2110.3,102.82121968]
[1617635580141,4.0403,2110.6,2110.3,102.82121968]
[1617635581443,1.698,2110.6,2110.3,102.82121968]
[1617635583043,1.698,2110.6,2110.3,104.82121968]
[1617635589149,1.698,2110.6,2110.3,102.82121968]
[1617635591452,1.698,2110.6,2110.3,104.82121968]
[1617635592257,1.698,2110.6,2110.3,40.96231968]
[1617635593754,1.698,2110.6,2110.3,38.41481968]
[1617635596861,1.698,2110.6,2110.3,36.41481968]
[1617635597662,0.9763,2110.6,2110.3,36.41481968]
[1617635598064,3.2813,2110.6,2110.3,6.41481968]
[1617635598663,2.90695,2110.4,2110.3,6.41481968]
[1617635601667,4.93535,2110.4,2110.3,6.41481968]
[1617635603772,4.93535,2110.4,2110.3,3.50786968]
[1617635603974,5.36891385,2110.4,2110.3,3.50786968]
[1617635604775,4.93535,2110.4,2110.3,3.50786968]
[1617635605778,5.3695136,2110.4,2110.3,3.50786968]
[1617635606685,4.93535,2110.4,2110.3,3.50786968]
[1617635609181,5.37029017,2110.4,2110.3,3.50786968]
[1617635609880,4.93535,2110.4,2110.3,3.50786968]
[1617635610983,3.56096814,2110.4,2110.3,3.50786968]
[1617635612182,2.90695,2110.4,2110.3,61.82266968]
[1617635612781,3.86005,2110.4,2110.3,64.72961968]
[1617635612982,2.90695,2110.4,2110.3,64.72961968]
[1617635613585,3.34416697,2110.4,2110.3,64.72961968]
[1617635616587,2.90695,2110.4,2110.3,64.72961968]
[1617635617490,0.43700436,2110.5,2110.3,64.72961968]
[1617635618091,0.6560255,2110.8,2110.3,94.72961968]
[1617635618493,1.6107255,2110.8,2110.3,94.72961968]
[1617635618691,0.9547,2110.8,2110.3,94.72961968]
[1617635618890,0.9547,2110.8,2110.7,2.90695]
[1617635619290,0.65554426,2110.8,2110.7,8.72695]
[1617635620791,1.49512125,2110.8,2110.7,5.82]
[1617635621192,1.71315535,2110.8,2110.4,5.73]
[1617635621390,4.47675535,2110.8,2110.4,5.73]
[1617635621590,4.47675535,2110.8,2110.7,5.91]
[1617635621791,3.88311862,2110.8,2110.5,3.34]
[1617635621991,2.0,2110.7,2110.5,3.34]
[1617635622192,2.0,2110.7,2109.8,5.93]
[1617635622392,1.93157884,2110.6,2109.7,12.9808]
[1617635622691,0.65523837,2110.2,2109.8,5.77]
[1617635622892,2.90695,2109.9,2109.8,5.77]
[1617635627196,3.56229468,2109.9,2109.8,5.77]
[1617635628097,2.90695,2109.9,2109.8,5.77]
[1617635628498,3.5620736,2109.9,2109.8,5.77]
[1617635628999,2.90695,2109.9,2109.8,5.77]
[1617635631601,5.50245,2109.9,2109.8,5.77]
[1617635633304,7.87461408,2109.9,2109.8,5.77]
[1617635634406,8.52596093,2109.9,2109.8,5.77]
[1617635635104,7.87461408,2109.9,2109.8,5.77]
[1617635636907,8.52513871,2109.9,2109.8,5.77]
[1617635638310,5.92963871,2109.9,2109.8,5.77]
[1617635638905,5.27911408,2109.9,2109.8,5.77]
[1617635640908,2.90695,2109.9,2109.8,5.77]
[1617635642609,0.65072938,2110.2,2109.8,8.2755]
[1617635642809,0.27125965,2110.0,2109.8,8.2755]
[1617635643209,1.90153012,2110.9,2109.8,8.2755]
[1617635643210,0.27132521,2110.1,2109.9,2.90695]
[1617635643609,0.27148632,2110.2,2110.1,58.3692]
[1617635644010,2.90695,2110.6,2110.2,5.79]
[1617635644411,2.90695,2110.6,2110.1,88.3692]
[1617635644612,2.90695,2110.6,2110.2,5.95]
[1617635645211,2.90695,2110.6,2110.5,2.90695]
[1617635645611,2.90695,2110.6,2110.5,5.98695]
[1617635645812,3.55925642,2110.6,2110.5,5.98695]
[1617635647312,3.55925642,2110.6,2110.5,3.6153935]
[1617635647614,2.90695,2110.6,2110.5,3.6153935]
[1617635648112,3.55990699,2110.6,2110.5,3.6153935]
[1617635648514,3.55990699,2110.6,2110.5,3.08]
[1617635648917,2.90695,2110.6,2109.8,5.93]
[1617635649115,0.87067798,2110.7,2110.2,2.90695]
[1617635649314,0.87067798,2110.7,2110.5,5.74]
[1617635649515,1.49298922,2110.5,2110.3,5.78]
[1617635649718,1.49298922,2110.5,2110.4,60.6557]
[1617635649917,0.65307517,2110.6,2110.4,60.6557]
[1617635650116,0.65307517,2110.6,2110.4,66.3657]
[1617635650517,0.65379128,2110.8,2110.4,66.3657]
[1617635651319,0.65379128,2110.8,2110.7,2.90695]
[1617635651719,0.65379128,2110.8,2110.7,8.85695]
[1617635652322,0.87179616,2110.9,2110.7,8.85695]
[1617635652519,0.87179616,2110.9,2110.7,5.95]
[1617635652924,0.87152849,2110.8,2110.5,5.86]
[1617635653320,3.56058749,2110.6,2110.4,60.6557]
[1617635653721,3.56058749,2110.6,2110.5,5.78]
[1617635655122,2.90695,2110.6,2110.5,5.78]
[1617635655523,3.56113664,2110.6,2110.5,5.78]
[1617635657022,0.87257046,2110.9,2110.5,35.78]
[1617635657224,3.56141848,2110.9,2110.8,2.90695]
[1617635657424,3.56141848,2110.9,2110.8,4.90485]
[1617635657624,2.27095,2110.9,2110.8,10.61485]
[1617635658224,11.0,2111.1,2110.8,10.61485]
[1617635658425,11.0,2111.1,2110.8,11.55335]
[1617635658624,11.0,2111.1,2110.8,10.61485]
[1617635658825,11.0,2111.1,2110.8,40.61485]
[1617635659125,11.0,2111.1,2110.8,10.61485]
[1617635662531,11.0,2111.1,2111.0,74.3865]
[1617635662932,11.0,2111.1,2111.0,80.0765]
[1617635664334,5.1596,2111.1,2111.0,35.69]
[1617635664534,0.87329059,2111.4,2111.0,35.69]
[1617635664735,1.09161323,2111.6,2111.0,35.69]
[1617635664736,0.87369108,2111.6,2111.0,35.69]
[1617635665238,0.87370138,2111.7,2111.5,2.90695]
[1617635665435,0.87370138,2111.7,2111.5,5.46205]
[1617635665636,0.87370138,2111.7,2111.6,5.68]
[1617635666041,3.78078306,2111.8,2111.6,5.68]
[1617635667038,2.90695,2111.8,2111.6,5.68]
[1617635667436,5.27698892,2111.8,2111.6,5.68]
[1617635667637,6.36927795,2111.8,2111.6,5.68]
[1617635668038,1.09210183,2111.7,2111.6,5.68]
[1617635669039,1.91355788,2111.7,2110.8,5.82]
[1617635669238,2.90695,2110.9,2110.8,5.82]
[1617635669441,2.90695,2110.9,2110.5,2.90695]
[1617635669639,2.90695,2110.9,2110.8,5.71]
[1617635670039,2.90695,2110.9,2110.6,5.76]
[1617635670240,2.90695,2110.9,2110.8,5.69]
[1617635670639,3.77976673,2110.9,2110.7,5.85]
[1617635670839,3.77976673,2110.9,2110.6,5.92]
[1617635671040,3.77976673,2110.9,2110.8,5.82]
[1617635671240,3.77976673,2110.9,2110.7,5.75]
[1617635671641,3.77976673,2110.9,2110.8,5.68]
[1617635671840,3.77976673,2110.9,2110.6,1.98]
[1617635672044,2.90695,2110.9,2110.5,2.90695]
[1617635672239,2.90695,2110.9,2110.8,5.86]
[1617635672641,2.90695,2110.9,2110.6,67.0312]
[1617635672841,2.90695,2110.9,2110.8,5.82]
[1617635673241,0.87376158,2111.1,2110.8,2.90695]
[1617635673442,0.87376158,2111.1,2110.8,8.84695]
[1617635673842,0.87409618,2111.2,2110.8,8.84695]
[1617635674843,0.87367883,2111.1,2110.8,8.84695]
[1617635675242,2.90695,2110.9,2110.8,8.84695]
[1617635676443,0.87367883,2111.1,2110.8,8.84695]
[1617635677244,2.90695,2110.9,2110.8,8.84695]
[1617635677445,0.87367883,2111.1,2110.8,8.84695]
[1617635677644,0.87367883,2111.1,2110.8,11.32215]
[1617635678247,0.87363197,2111.2,2110.8,11.32215]
[1617635678646,3.24451656,2111.4,2110.8,11.32215]
[1617635679348,2.90695,2110.9,2110.8,11.32215]
[1617635679748,2.90695,2110.9,2110.8,8.84695]
[1617635680348,14.90695,2110.9,2110.8,8.84695]
[1617635681650,12.0,2110.9,2110.8,8.84695]
[1617635685756,12.0,2110.9,2110.8,5.94]
[1617635685956,12.87568622,2110.9,2110.8,5.94]
[1617635686156,12.87568622,2110.9,2110.7,5.81]
[1617635686555,12.87568622,2110.9,2110.8,5.73]
[1617635686755,12.87568622,2110.9,2110.7,5.94]
[1617635687358,2.90695,2110.8,2110.7,5.94]
[1617635688156,12.87568622,2110.9,2110.7,5.94]
[1617635688557,12.0,2110.9,2110.7,5.94]
[1617635689357,2.90695,2110.8,2110.7,5.94]
[1617635695966,12.0,2110.9,2110.7,5.94]
[1617635696466,12.0,2110.9,2110.7,6.8784]
[1617635696666,11.5675,2110.9,2110.7,36.8784]
[1617635696865,11.2736,2110.9,2110.7,36.8784]
[1617635697065,10.1308,2110.9,2110.7,36.8784]
[1617635700871,9.7867,2110.9,2110.7,36.8784]
[1617635703471,1.6181,2110.9,2110.7,107.0091]
[1617635703674,0.05472319,2111.0,2110.7,38.8784]
[1617635703873,0.05472518,2111.1,2110.7,38.8784]
[1617635704274,0.05469353,2111.2,2110.7,38.8784]
[1617635704674,0.05467369,2111.3,2110.7,38.8784]
[1617635704976,0.05466905,2111.4,2110.7,38.8784]
[1617635705474,2.90695,2111.9,2111.3,2.90695]
[1617635705675,2.90695,2111.9,2111.3,35.82035]
[1617635705875,2.90695,2111.9,2111.4,5.81]
[1617635707576,2.90695,2111.9,2111.8,2.90695]
[1617635707975,2.90695,2111.9,2111.8,8.58695]
[1617635709277,0.76075,2111.9,2111.8,8.58695]
[1617635709477,0.87256438,2112.2,2111.8,10.69435]
[1617635709877,0.87177737,2112.3,2111.8,10.69435]
[1617635711182,0.87122998,2112.4,2111.8,10.69435]
[1617635711582,2.90695,2112.6,2112.3,2.90695]
[1617635711784,2.90695,2112.6,2112.3,5.44305]
[1617635711983,2.90695,2112.6,2112.4,5.88]
[1617635715386,2.90695,2112.6,2111.9,5.85]
[1617635715585,2.90695,2112.0,2111.8,2.90695]
[1617635715787,2.96111203,2112.0,2111.8,2.90695]
[1617635715986,2.96111203,2112.0,2111.9,5.82]
[1617635716187,2.90695,2112.0,2111.9,5.82]
[1617635716591,0.05417324,2112.1,2111.9,5.82]
[1617635716792,0.05418593,2112.2,2111.9,5.82]
[1617635716988,0.05418593,2112.2,2111.9,8.466]
[1617635717189,0.05419699,2112.3,2111.9,8.466]
[1617635717590,9.699e-05,2112.3,2112.2,2.90695]
[1617635717989,2.90695,2112.6,2112.2,8.86695]
[1617635718189,1.9017821,2113.7,2112.2,8.86695]
[1617635718190,0.65152516,2113.2,2112.2,8.86695]
[1617635718788,0.65149429,2113.1,2112.2,8.86695]
[1617635719489,0.65149429,2113.1,2113.0,2.90695]
[1617635719892,0.65149429,2113.1,2113.0,8.80695]
[1617635720092,1.08564133,2113.5,2113.0,8.80695]
[1617635720093,0.86818617,2113.2,2113.0,8.80695]
[1617635720492,0.65114513,2113.1,2113.0,8.80695]
[1617635720693,5.19305,2112.2,2111.9,2.646]
[1617635721091,5.19305,2112.2,2112.0,5.81]
[1617635721293,5.19305,2112.2,2112.0,6.7449]
[1617635721493,5.19305,2112.2,2112.1,2.90695]
[1617635721893,5.19305,2112.2,2112.1,8.83695]
[1617635725394,4.88105,2112.2,2112.1,8.83695]
[1617635725793,2.90695,2113.3,2112.1,38.83695]
[1617635725993,2.90695,2113.3,2112.1,40.83695]
[1617635726594,0.65106804,2113.9,2112.1,40.83695]
[1617635727596,0.65106804,2113.9,2113.7,2.90695]
[1617635727998,0.65106804,2113.9,2113.8,5.7]
[1617635729398,0.65214205,2114.1,2113.8,5.7]
[1617635729599,0.65214205,2114.1,2114.0,2.90695]
[1617635729815,0.65214205,2114.1,2114.0,5.17635]
[1617635729999,0.65214205,2114.1,2114.0,10.94635]
[1617635730199,2.90695,2114.2,2114.0,10.94635]
[1617635730200,0.65255219,2114.2,2114.0,10.94635]
[1617635731000,0.87006959,2114.4,2114.0,10.94635]
[1617635731001,0.65279255,2114.4,2114.0,10.94635]
[1617635731401,0.6528705,2114.5,2114.0,10.94635]
[1617635731600,0.6528705,2114.5,2114.4,2.90695]
[1617635732005,0.6528705,2114.5,2114.4,70.48905]
[1617635732702,0.6528705,2114.5,2114.4,6.46918943]
[1617635734505,0.6528705,2114.5,2114.4,5.93]
[1617635734806,3.77604366,2114.7,2114.4,5.93]
[1617635735006,3.77604366,2114.7,2113.9,5.79]
[1617635735205,3.77604366,2114.7,2114.5,5.67]
[1617635735206,2.90695,2114.7,2114.5,5.67]
[1617635735605,2.90695,2114.7,2114.1,2.90695]
[1617635736006,2.90695,2114.7,2114.6,5.95]
[1617635736207,2.90695,2114.7,2114.2,5.55]
[1617635736406,2.90695,2114.7,2114.1,2.90695]
[1617635736606,2.90695,2114.7,2114.6,5.83]
[1617635736806,2.90695,2114.7,2114.2,5.88]
[1617635737206,2.90695,2114.7,2114.6,5.82]
[1617635737406,2.90695,2114.7,2114.2,5.85]
[1617635737613,2.90695,2114.3,2114.2,5.85]
[1617635737812,2.90695,2114.3,2113.1,15.7539]